fUSD/lending_fUSD_20241230
["ID","MTS","AMOUNT","RATE_DAILY","PERIOD"]
[347176235,1735548640616,-500.0,0.00014299,2]
[347176236,1735548640626,-806.14,0.00014299,2]
[347176237,1735548640636,-500.0,0.00014299,2]
[347176238,1735548640645,-949.35,0.00014299,2]
[347176239,1735548640655,-556.84,0.00014299,2]
[347176240,1735548640664,-811.43,0.00014299,2]
[347176241,1735548640674,-500.0,0.00014299,2]
[347176242,1735548640683,-500.0,0.00014299,2]
[347176243,1735548640692,-500.0,0.00014299,2]
[347176244,1735548640701,-500.0,0.00014299,2]
[347176245,1735548640710,-500.0,0.00014299,2]
[347176246,1735548640720,-500.0,0.00014299,2]
[347176247,1735548640729,-500.0,0.00014299,2]
[347176248,1735548640738,-500.0,0.00014299,2]
[347176249,1735548640748,-500.0,0.00014299,2]
[347176250,1735548640757,-698.6,0.00014299,2]
[347176251,1735548640767,-500.0,0.00014299,2]
[347176252,1735548640776,-500.0,0.00014299,2]
[347176253,1735548640785,-505.13544138,0.00014299,2]
[347176254,1735548640795,-500.0,0.00014299,2]
[347176255,1735548640804,-500.0,0.00014299,2]
[347176256,1735548640814,-500.0,0.00014299,2]
[347176257,1735548640824,-795.37,0.00014299,2]
[347176258,1735548640833,-921.57,0.00014299,2]
[347176259,1735548640842,-182.52557684,0.00014299,2]
[347176260,1735548640852,-500.0,0.00014299,2]
[347176261,1735548640861,-500.0,0.00014299,2]
[347176262,1735548640871,-923.98,0.00014299,2]
[347176263,1735548640893,-850.67,0.00014299,2]
[347176264,1735548640903,-500.0,0.00014299,2]
[347176265,1735548640912,-500.0,0.00014299,2]
[347176266,1735548640922,-500.45254308,0.00014299,2]
[347176267,1735548640932,-500.0,0.00014299,2]
[347176268,1735548640942,-500.0,0.00014299,2]
[347176269,1735548640951,-500.0,0.00014299,2]
[347176270,1735548640961,-500.0,0.00014299,2]
[347176271,1735548640970,-500.0,0.00014299,2]
[347176272,1735548640980,-500.0,0.00014299,2]
[347176273,1735548640989,-500.0,0.00014299,2]
[347176274,1735548640998,-500.0,0.00014299,2]
[347176275,1735548641007,-500.0,0.00014299,2]
[347176276,1735548641016,-508.82081533,0.00014299,2]
[347176277,1735548641025,-500.0,0.00014299,2]
[347176278,1735548641034,-500.0,0.00014299,2]
[347176279,1735548641043,-500.0,0.00014299,2]
[347176280,1735548641052,-500.0,0.00014299,2]
[347176281,1735548641061,-1097.74,0.00014299,2]
[347176282,1735548641071,-500.0,0.00014299,2]
[347176283,1735548641080,-601.16,0.00014299,2]
[347176284,1735548641089,-500.0,0.00014299,2]
[347176285,1735548641099,-1181.01,0.00014299,2]
[347176286,1735548641111,-567.31,0.00014299,2]
[347176287,1735548641121,-500.0,0.00014299,2]
[347176288,1735548641135,-500.62474612,0.00014299,2]
[347176289,1735548641145,-1040.66,0.00014299,2]
[347176290,1735548641155,-500.0,0.00014299,2]
[347176291,1735548641164,-500.0,0.00014299,2]
[347176292,1735548641174,-500.0,0.00014299,2]
[347176293,1735548641184,-408.31592585,0.00014299,2]
[347176294,1735548641194,-500.0,0.00014299,2]
[347176295,1735548641203,-1143.11,0.00014299,2]
[347176296,1735548641212,-501.56323935,0.00014299,2]
[347176297,1735548641222,-500.0,0.00014299,2]
[347176298,1735548641231,-567.55,0.00014299,2]
[347176299,1735548641240,-500.0,0.00014299,2]
[347176300,1735548641249,-508.35,0.00014299,2]
[347176301,1735548641258,-859.83,0.00014299,2]
[347176302,1735548641268,-500.0,0.00014299,2]
[347176303,1735548641277,-500.0,0.00014299,2]
[347176304,1735548641286,-500.0,0.00014299,2]
[347176305,1735548641296,-500.0,0.00014299,2]
[347176306,1735548641305,-500.0,0.00014299,2]
[347176307,1735548641315,-500.0,0.00014299,2]
[347176308,1735548641324,-1191.71,0.00014299,2]
[347176309,1735548641334,-500.0,0.00014299,2]
[347176310,1735548641343,-500.0,0.00014299,2]
[347176311,1735548641352,-660.04,0.00014299,2]
[347176312,1735548641361,-500.0,0.00014299,2]
[347176313,1735548641371,-500.0,0.00014299,2]
[347176314,1735548641386,-500.0,0.00014299,2]
[347176315,1735548641395,-993.95,0.00014299,2]
[347176316,1735548641404,-1102.81,0.00014299,2]
[347176317,1735548641414,-500.0,0.00014299,2]
[347176318,1735548641423,-500.0,0.00014299,2]
[347176319,1735548641433,-500.0,0.00014299,2]
[347176320,1735548641442,-630.66,0.00014299,2]
[347176321,1735548641451,-1125.0,0.00014299,2]
[347176322,1735548641460,-721.82,0.00014299,2]
[347176323,1735548641470,-1054.88,0.00014299,2]
[347176324,1735548641479,-844.3,0.00014299,2]
[347176325,1735548641488,-832.13,0.00014299,2]
[347176326,1735548641497,-500.0,0.00014299,2]
[347176327,1735548641506,-1261.2,0.00014299,2]
[347176328,1735548641516,-1393.39,0.00014299,2]
[347176329,1735548641526,-500.0,0.00014299,2]
[347176330,1735548641535,-2380.98,0.00014299,2]
[347176331,1735548641544,-697.5,0.00014299,2]
[347176332,1735548641554,-500.0,0.00014299,2]
[347176333,1735548641563,-500.0,0.00014299,2]
[347176334,1735548641573,-500.0,0.00014299,2]
[347176335,1735548641582,-989.87,0.00014299,2]
[347176336,1735548641591,-2166.49,0.00014299,2]
[347176337,1735548641601,-500.0,0.00014299,2]
[347176338,1735548641611,-4394.47,0.00014299,2]
[347176339,1735548641620,-737.74,0.00014299,2]
[347176340,1735548641635,-502.56981402,0.00014299,2]
[347176341,1735548641645,-3092.68,0.00014299,2]
[347176342,1735548641654,-848.03,0.00014299,2]
[347176343,1735548641663,-2303.12,0.00014299,2]
[347176344,1735548641673,-500.0,0.00014299,2]
[347176345,1735548641682,-705.43,0.00014299,2]
[347176346,1735548641691,-513.01745802,0.00014299,2]
[347176347,1735548641701,-1782.14,0.00014299,2]
[347176348,1735548641711,-500.0,0.00014299,2]
[347176349,1735548641720,-1346.9,0.00014299,2]
[347176350,1735548641729,-500.0,0.00014299,2]
[347176351,1735548641738,-1264.02,0.00014299,2]
[347176352,1735548641749,-1008.7,0.00014299,2]
[347176353,1735548641758,-1066.44,0.00014299,2]
[347176354,1735548641767,-500.0,0.00014299,2]
[347176355,1735548641776,-754.15,0.00014299,2]
[347176356,1735548641785,-1520.96,0.00014299,2]
[347176357,1735548641794,-409.94998105,0.00014299,2]
[347176358,1735548641803,-1307.36,0.00014299,2]
[347176359,1735548641812,-500.0,0.00014299,2]
[347176360,1735548641821,-500.0,0.00014299,2]
[347176361,1735548641831,-553.24,0.00014299,2]
[347176362,1735548641840,-1117.11,0.00014299,2]
[347176363,1735548641849,-635.96,0.00014299,2]
[347176364,1735548641858,-670.32,0.00014299,2]
[347176365,1735548641867,-760.18,0.00014299,2]
[347176366,1735548641880,-500.0,0.00014299,2]
[347176367,1735548641890,-1095.73,0.00014299,2]
[347176368,1735548641901,-500.0,0.00014299,2]
[347176369,1735548641910,-510.98681656,0.00014299,2]
[347176370,1735548641919,-520.92959261,0.00014299,2]
[347176371,1735548641928,-791.61,0.00014299,2]
[347176372,1735548641937,-500.0,0.00014299,2]
[347176373,1735548641947,-1058.48,0.00014299,2]
[347176374,1735548641956,-1338.23,0.00014299,2]
[347176375,1735548641966,-995.58,0.00014299,2]
[347176376,1735548641975,-596.37,0.00014299,2]
[347176377,1735548641983,-677.76,0.00014299,2]
[347176378,1735548641993,-500.0,0.00014299,2]
[347176379,1735548642002,-500.0,0.00014299,2]
[347176380,1735548642011,-500.0,0.00014299,2]
[347176381,1735548642020,-813.07,0.00014299,2]
[347176382,1735548642029,-1360.4,0.00014299,2]
[347176383,1735548642038,-500.0,0.00014299,2]
[347176384,1735548642048,-380.84716896,0.00014299,2]
[347176385,1735548642057,-501.30109965,0.00014299,2]
[347176386,1735548642067,-561.89,0.00014299,2]
[347176387,1735548642075,-746.66,0.00014299,2]
[347176388,1735548642085,-688981.0,0.000143,2]
[347176389,1735548642094,-150.0,0.00014304,2]
[347176390,1735548642107,-1911.55776359,0.00014311,2]
[347176391,1735548642115,-247.16041934,0.00014317,2]
[347176392,1735548642125,-150.0,0.00014332,2]
[347176393,1735548642134,-1911.55776359,0.00014333,2]
[347176394,1735548642144,-247.16041934,0.00014338,2]
[347176395,1735548642153,-500.0,0.00014342,2]
[347176396,1735548642162,-309.19370612,0.00014343,2]
[347176397,1735548642172,-500.0,0.00014343,2]
[347176398,1735548642183,-625.35,0.00014343,2]
[347176399,1735548642193,-500.0,0.00014343,2]
[347176400,1735548642202,-522.13920914,0.00014343,2]
[347176401,1735548642211,-529.69178813,0.00014343,2]
[347176402,1735548642220,-500.0,0.00014343,2]
[347176403,1735548642230,-505.99791792,0.00014343,2]
[347176404,1735548642239,-500.0,0.00014343,2]
[347176405,1735548642249,-500.0,0.00014343,2]
[347176406,1735548642391,-500.0,0.00014343,2]
[347176407,1735548642402,-500.0,0.00014343,2]
[347176408,1735548642412,-500.0,0.00014343,2]
[347176409,1735548642421,-500.0,0.00014343,2]
[347176410,1735548642430,-500.0,0.00014343,2]
[347176411,1735548642439,-717.0,0.00014343,2]
[347176412,1735548642448,-500.0,0.00014343,2]
[347176413,1735548642458,-381.91210818,0.00014343,2]
[347176414,1735548642467,-500.0,0.00014343,2]
[347176415,1735548642476,-500.0,0.00014343,2]
[347176416,1735548642485,-500.0,0.00014343,2]
[347176417,1735548642494,-634.44,0.00014343,2]
[347176418,1735548642503,-500.0,0.00014343,2]
[347176419,1735548642512,-500.0,0.00014343,2]
[347176420,1735548642521,-500.0,0.00014343,2]
[347176421,1735548642531,-500.0,0.00014343,2]
[347176422,1735548642540,-543.7154699,0.00014343,2]
[347176423,1735548642549,-500.0,0.00014343,2]
[347176424,1735548642559,-500.0,0.00014343,2]
[347176425,1735548642568,-500.0,0.00014343,2]
[347176426,1735548642577,-500.0,0.00014343,2]
[347176427,1735548642587,-500.0,0.00014343,2]
[347176428,1735548642596,-500.0,0.00014343,2]
[347176429,1735548642605,-606.8,0.00014343,2]
[347176430,1735548642615,-500.0,0.00014343,2]
[347176431,1735548642624,-500.0,0.00014343,2]
[347176432,1735548642634,-500.0,0.00014343,2]
[347176433,1735548642643,-504.00842952,0.00014343,2]
[347176434,1735548642652,-500.0,0.00014343,2]
[347176436,1735548642662,-500.0,0.00014343,2]
[347176437,1735548642673,-747.52,0.00014343,2]
[347176438,1735548642681,-500.0,0.00014343,2]
[347176439,1735548642690,-700.0,0.00014343,2]
[347176440,1735548642699,-638.72,0.00014343,2]
[347176441,1735548642708,-500.0,0.00014343,2]
[347176442,1735548642718,-500.0,0.00014343,2]
[347176444,1735548642727,-500.0,0.00014343,2]
[347176445,1735548642735,-500.0,0.00014343,2]
[347176447,1735548642744,-500.0,0.00014343,2]
[347176449,1735548642753,-501.1230332,0.00014343,2]
[347176450,1735548642762,-500.0,0.00014343,2]
[347176452,1735548642771,-504.34579713,0.00014343,2]
[347176453,1735548642780,-500.0,0.00014343,2]
[347176454,1735548642789,-464.59153142,0.00014343,2]
[347176455,1735548642799,-509.65869812,0.00014343,2]
[347176456,1735548642809,-505.87287445,0.00014343,2]
[347176457,1735548642818,-500.0,0.00014343,2]
[347176458,1735548642827,-463.49596546,0.00014343,2]
[347176459,1735548642836,-500.0,0.00014343,2]
[347176460,1735548642845,-500.0,0.00014343,2]
[347176461,1735548642855,-500.0,0.00014343,2]
[347176462,1735548642864,-500.0,0.00014343,2]
[347176463,1735548642874,-695.17,0.00014343,2]
[347176464,1735548642883,-485.61917957,0.00014343,2]
[347176465,1735548642892,-500.0,0.00014343,2]
[347176466,1735548642901,-500.0,0.00014343,2]
[347176467,1735548642911,-500.0,0.00014343,2]
[347176468,1735548642920,-500.0,0.00014343,2]
[347176469,1735548642929,-500.0,0.00014343,2]
[347176470,1735548642938,-910.64,0.00014343,2]
[347176471,1735548642948,-500.0,0.00014343,2]
[347176472,1735548642958,-503.91223571,0.00014343,2]
[347176473,1735548642968,-524.39403297,0.00014343,2]
[347176474,1735548642978,-626.89,0.00014343,2]
[347176475,1735548642987,-231.26228794,0.00014343,2]
[347176476,1735548642996,-506.67371317,0.00014343,2]
[347176477,1735548643006,-500.0,0.00014343,2]
[347176478,1735548643015,-503.33969575,0.00014343,2]
[347176479,1735548643024,-501.49338005,0.00014343,2]
[347176480,1735548643033,-502.88241716,0.00014343,2]
[347176481,1735548643043,-502.60922119,0.00014343,2]
[347176482,1735548643052,-500.0,0.00014343,2]
[347176483,1735548643061,-503.07937007,0.00014343,2]
[347176484,1735548643070,-505.21730909,0.00014343,2]
[347176485,1735548643079,-500.0,0.00014343,2]
[347176486,1735548643089,-502.26526517,0.00014343,2]
[347176487,1735548643098,-525.18176719,0.00014343,2]
[347176488,1735548643111,-503.44157017,0.00014343,2]
[347176489,1735548643120,-511.0997078,0.00014343,2]
[347176490,1735548643130,-686.38,0.00014343,2]
[347176491,1735548643139,-500.0,0.00014343,2]
[347176492,1735548643149,-503.64941277,0.00014343,2]
[347176493,1735548643159,-504.83564735,0.00014343,2]
[347176494,1735548643168,-500.0,0.00014343,2]
[347176495,1735548643178,-500.0,0.00014343,2]
[347176496,1735548643187,-501.51830159,0.00014343,2]
[347176497,1735548643197,-500.0,0.00014343,2]
[347176498,1735548643206,-500.0,0.00014343,2]
[347176499,1735548643215,-500.0,0.00014343,2]
[347176500,1735548643224,-505.65793461,0.00014343,2]
[347176501,1735548643234,-505.24757733,0.00014343,2]
[347176502,1735548643243,-505.03806112,0.00014343,2]
[347176503,1735548643252,-999.1,0.00014343,2]
[347176504,1735548643261,-500.0,0.00014343,2]
[347176505,1735548643270,-503.59600814,0.00014343,2]
[347176506,1735548643279,-503.44476731,0.00014343,2]
[347176507,1735548643288,-522.70183613,0.00014343,2]
[347176508,1735548643298,-503.95864739,0.00014343,2]
[347176509,1735548643307,-517.69682281,0.00014343,2]
[347176510,1735548643316,-500.0,0.00014343,2]
[347176511,1735548643325,-502.64050372,0.00014343,2]
[347176512,1735548643334,-504.9824966,0.00014343,2]
[347176513,1735548643343,-502.58336341,0.00014343,2]
[347176514,1735548643352,-500.0,0.00014343,2]
[347176515,1735548643361,-500.0,0.00014343,2]
[347176516,1735548643370,-507.2836836,0.00014343,2]
[347176517,1735548643379,-500.0,0.00014343,2]
[347176518,1735548643388,-536.29091314,0.00014343,2]
[347176519,1735548643397,-500.0,0.00014343,2]
[347176520,1735548643407,-500.0,0.00014343,2]
[347176521,1735548643416,-518.55115169,0.00014343,2]
[347176522,1735548643425,-500.0,0.00014343,2]
[347176523,1735548643434,-507.11333234,0.00014343,2]
[347176524,1735548643443,-503.78156566,0.00014343,2]
[347176525,1735548643452,-500.0,0.00014343,2]
[347176526,1735548643462,-843.51,0.00014343,2]
[347176527,1735548643471,-500.0,0.00014343,2]
[347176528,1735548643480,-500.0,0.00014343,2]
[347176529,1735548643489,-503.71458315,0.00014343,2]
[347176530,1735548643498,-501.69823816,0.00014343,2]
[347176531,1735548643507,-822.39,0.00014343,2]
[347176532,1735548643517,-500.0,0.00014343,2]
[347176533,1735548643526,-602.3,0.00014343,2]
[347176534,1735548643535,-506.87669415,0.00014343,2]
[347176535,1735548643544,-501.84367069,0.00014343,2]
[347176536,1735548643553,-426.94648255,0.00014343,2]
[347176537,1735548643562,-500.0,0.00014343,2]
[347176538,1735548643571,-512.39521992,0.00014343,2]
[347176539,1735548643580,-500.0,0.00014343,2]
[347176540,1735548643589,-500.0,0.00014343,2]
[347176541,1735548643599,-500.0,0.00014343,2]
[347176542,1735548643608,-566.6,0.00014343,2]
[347176543,1735548643618,-506.34608933,0.00014343,2]
[347176544,1735548643627,-500.0,0.00014343,2]
[347176545,1735548643637,-690.64,0.00014343,2]
[347176546,1735548643646,-507.94154834,0.00014343,2]
[347176547,1735548643655,-500.0,0.00014343,7]
[347176548,1735548643665,-1483.73,0.00014343,2]
[347176549,1735548643675,-500.0,0.00014343,2]
[347176550,1735548643684,-502.47269234,0.00014343,2]
[347176551,1735548643693,-500.92655775,0.00014343,2]
[347176552,1735548643702,-500.0,0.00014343,2]
[347176553,1735548643712,-614.54966525,0.00014343,2]
[347176554,1735548643721,-500.0,0.00014343,2]
[347176555,1735548643730,-502.60209297,0.00014343,2]
[347176556,1735548643739,-564.98,0.00014343,2]
[347176557,1735548643748,-500.0,0.00014343,2]
[347176558,1735548643757,-502.78951634,0.00014343,2]
[347176559,1735548643766,-503.68309267,0.00014343,2]
[347176560,1735548643775,-509.22042626,0.00014343,2]
[347176561,1735548643784,-501.51466838,0.00014343,2]
[347176562,1735548643793,-503.89586257,0.00014343,2]
[347176563,1735548643802,-513.2124649,0.00014343,2]
[347176564,1735548643811,-501.55201411,0.00014343,2]
[347176565,1735548643820,-510.64051799,0.00014343,2]
[347176566,1735548643829,-500.0,0.00014343,2]
[347176567,1735548643838,-503.96497767,0.00014343,2]
[347176568,1735548643847,-843.44,0.00014343,2]
[347176569,1735548643856,-500.0,0.00014343,2]
[347176570,1735548643865,-501.23164809,0.00014343,2]
[347176571,1735548643875,-500.0,0.00014343,2]
[347176572,1735548643884,-500.0,0.00014343,2]
[347176573,1735548643893,-507.85731347,0.00014343,2]
[347176574,1735548643902,-502.13804542,0.00014343,2]
[347176575,1735548643912,-656.63,0.00014343,2]
[347176576,1735548643921,-500.0,0.00014343,2]
[347176577,1735548643931,-508.53283754,0.00014343,2]
[347176578,1735548643941,-501.87099505,0.00014343,2]
[347176579,1735548643951,-500.0,0.00014343,2]
[347176580,1735548643960,-500.0,0.00014343,2]
[347176581,1735548643970,-500.0,0.00014343,2]
[347176582,1735548643979,-507.1515393,0.00014343,2]
[347176583,1735548643988,-502.16046772,0.00014343,2]
[347176584,1735548643996,-500.0,0.00014343,2]
[347176585,1735548644006,-503.11368271,0.00014343,2]
[347176586,1735548644015,-253.0578852,0.00014343,2]
[347176587,1735548644023,-506.02569619,0.00014343,2]
[347176588,1735548644032,-500.0,0.00014343,2]
[347176589,1735548644042,-500.0,0.00014343,2]
[347176590,1735548644051,-500.0,0.00014343,2]
[347176591,1735548644059,-500.0,0.00014343,2]
[347176592,1735548644068,-523.45,0.00014343,2]
[347176593,1735548644078,-500.0,0.00014343,2]
[347176594,1735548644087,-500.0,0.00014343,2]
[347176595,1735548644096,-510.84194666,0.00014343,2]
[347176596,1735548644109,-500.0,0.00014343,2]
[347176597,1735548644118,-500.0,0.00014343,2]
[347176598,1735548644127,-502.29047394,0.00014343,2]
[347176599,1735548644135,-500.0,0.00014343,2]
[347176600,1735548644144,-500.0,0.00014343,2]
[347176601,1735548644154,-500.0,0.00014343,2]
[347176602,1735548644163,-500.0,0.00014343,2]
[347176603,1735548644172,-500.0,0.00014343,2]
[347176604,1735548644181,-500.0,0.00014343,2]
[347176605,1735548644191,-500.0,0.00014343,2]
[347176606,1735548644199,-500.0,0.00014343,2]
[347176607,1735548644208,-500.0,0.00014343,2]
[347176608,1735548644217,-500.0,0.00014343,2]
[347176609,1735548644226,-500.0,0.00014343,2]
[347176610,1735548644235,-500.0,0.00014343,2]
[347176611,1735548644245,-500.0,0.00014343,2]
[347176612,1735548644254,-500.0,0.00014343,2]
[347176613,1735548644266,-500.0,0.00014343,2]
[347176614,1735548644274,-501.78618222,0.00014343,2]
[347176615,1735548644284,-500.0,0.00014343,2]
[347176616,1735548644293,-500.0,0.00014343,2]
[347176617,1735548644302,-500.0,0.00014343,2]
[347176618,1735548644311,-504.50849433,0.00014343,2]
[347176619,1735548644320,-500.0,0.00014343,2]
[347176620,1735548644329,-500.0,0.00014343,2]
[347176621,1735548644338,-524.16,0.00014343,2]
[347176622,1735548644348,-188.56524679,0.00014344,2]
[347176623,1735548644357,-155.86316,0.0001435,2]
[347176624,1735548644366,-1911.55776359,0.00014355,2]
[347176625,1735548644376,-247.16041934,0.00014359,2]
[347176626,1735548644385,-150.0,0.00014359,2]
[347176627,1735548644395,-150.0,0.00014361,2]
[347176628,1735548644404,-150.0,0.00014367,2]
[347176629,1735548644413,-1008.37,0.00014376,2]
[347176630,1735548644423,-949.46,0.00014376,2]
[347176631,1735548644432,-500.0,0.00014376,2]
[347176632,1735548644442,-741.13,0.00014376,2]
[347176633,1735548644451,-605.06,0.00014376,2]
[347176634,1735548644461,-811.58,0.00014376,2]
[347176635,1735548644471,-500.0,0.00014376,2]
[347176636,1735548644480,-500.0,0.00014376,2]
[347176637,1735548644488,-500.0,0.00014376,2]
[347176638,1735548644498,-604.39,0.00014376,2]
[347176639,1735548644507,-582.13,0.00014376,2]
[347176640,1735548644516,-500.0,0.00014376,2]
[347176641,1735548644524,-500.0,0.00014376,2]
[347176642,1735548644533,-522.72,0.00014376,2]
[347176643,1735548644542,-1082.38,0.00014376,2]
[347176644,1735548644551,-500.0,0.00014376,2]
[347176645,1735548644561,-500.0,0.00014376,2]
[347176646,1735548644570,-1251.62,0.00014376,2]
[347176647,1735548644579,-500.0,0.00014376,2]
[347176648,1735548644588,-778.3,0.00014376,2]
[347176649,1735548644597,-982.9,0.00014376,2]
[347176650,1735548644606,-526.18,0.00014376,2]
[347176651,1735548644615,-801.68,0.00014376,2]
[347176652,1735548644625,-500.0,0.00014376,2]
[347176653,1735548644634,-623.97,0.00014376,2]
[347176654,1735548644643,-734.91,0.00014376,2]
[347176655,1735548644779,-503.42,0.00014376,2]
[347176656,1735548644789,-503.41761449,0.00014376,2]
[347176657,1735548644798,-536.86087654,0.00014376,2]
[347176658,1735548644807,-500.0,0.00014376,2]
[347176659,1735548644816,-500.0,0.00014376,2]
[347176660,1735548644825,-500.0,0.00014376,2]
[347176661,1735548644834,-500.0,0.00014376,2]
[347176662,1735548644843,-661.66,0.00014376,2]
[347176663,1735548644852,-500.0,0.00014376,2]
[347176664,1735548644861,-500.0,0.00014376,2]
[347176665,1735548644871,-1811.34,0.00014376,2]
[347176666,1735548644883,-902.32,0.00014376,2]
[347176667,1735548644892,-1067.75,0.00014376,2]
[347176668,1735548644901,-2221.44,0.00014376,2]
[347176669,1735548644910,-500.0,0.00014376,2]
[347176670,1735548644919,-500.0,0.00014376,2]
[347176671,1735548644929,-500.0,0.00014376,2]
[347176672,1735548644938,-500.0,0.00014376,2]
[347176673,1735548644947,-500.0,0.00014376,2]
[347176674,1735548644956,-433.51471761,0.00014376,2]
[347176675,1735548644966,-717.65,0.00014376,2]
[347176676,1735548644975,-751.31,0.00014376,2]
[347176677,1735548644984,-1376.52,0.00014376,2]
[347176678,1735548644993,-965.48,0.00014376,2]
[347176679,1735548645002,-500.0,0.00014376,2]
[347176680,1735548645011,-1316.95,0.00014376,2]
[347176681,1735548645020,-500.0,0.00014376,2]
[347176682,1735548645029,-500.0,0.00014376,2]
[347176683,1735548645039,-638.24,0.00014376,2]
[347176684,1735548645048,-500.0,0.00014376,2]
[347176685,1735548645057,-715.73,0.00014376,2]
[347176686,1735548645066,-501.78,0.00014376,2]
[347176687,1735548645075,-578.77,0.00014376,2]
[347176688,1735548645083,-503.51,0.00014376,2]
[347176689,1735548645092,-690.01,0.00014376,2]
[347176690,1735548645104,-631.2,0.00014376,2]
[347176691,1735548645113,-544.66,0.00014376,2]
[347176692,1735548645124,-1911.55776359,0.00014378,2]
[347176693,1735548645134,-247.16041934,0.00014379,2]
[347176694,1735548645143,-626.89,0.00014398,2]
[347176695,1735548645154,-630.4,0.00014399,2]
[347176696,1735548645163,-1102.88,0.00014399,2]
[347176697,1735548645172,-691.93,0.00014399,2]
[347176698,1735548645181,-796.24,0.00014399,2]
[347176699,1735548645191,-995.77,0.00014399,2]
[347176700,1735548645199,-738.73,0.00014399,2]
[347176701,1735548645208,-1322.35,0.00014399,2]
[347176702,1735548645217,-533.31,0.00014399,2]
[347176703,1735548645226,-1492.81,0.00014399,2]
[347176704,1735548645234,-568.13,0.00014399,2]
[347176705,1735548645244,-762.87,0.00014399,2]
[347176706,1735548645253,-1355.94,0.00014399,2]
[347176707,1735548645262,-773.41,0.00014399,2]
[347176708,1735548645271,-541.15,0.00014399,2]
[347176709,1735548645279,-736.46,0.00014399,2]
[347176710,1735548645288,-587.76,0.00014399,2]
[347176711,1735548645297,-596.2,0.00014399,2]
[347176712,1735548645306,-969.63,0.00014399,2]
[347176713,1735548645315,-500.0,0.00014399,2]
[347176714,1735548645324,-562.53,0.00014399,2]
[347176715,1735548645332,-543.72,0.00014399,2]
[347176716,1735548645341,-546.69,0.00014399,2]
[347176717,1735548645351,-767.85,0.00014399,2]
[347176718,1735548645360,-500.0,0.00014399,2]
[347176719,1735548645368,-1204.59,0.00014399,2]
[347176720,1735548645379,-500.0,0.00014399,2]
[347176721,1735548645388,-500.0,0.00014399,2]
[347176722,1735548645397,-707.49,0.00014399,2]
[347176723,1735548645406,-511.16502465,0.00014399,2]
[347176724,1735548645415,-1843.36,0.00014399,2]
[347176725,1735548645424,-2105.88,0.00014399,2]
[347176726,1735548645433,-1604.2,0.00014399,2]
[347176727,1735548645442,-1851.21,0.00014399,2]
[347176728,1735548645451,-2722.45,0.00014399,2]
[347176729,1735548645460,-826.09,0.00014399,2]
[347176730,1735548645469,-1704.62,0.00014399,2]
[347176731,1735548645479,-4783.92,0.00014399,2]
[347176732,1735548645488,-1710.88,0.00014399,2]
[347176734,1735548645497,-1529.95,0.00014399,2]
[347176736,1735548645507,-740.33,0.00014399,2]
[347176738,1735548645516,-675.16,0.00014399,2]
[347176739,1735548645525,-2951.83,0.00014399,2]
[347176740,1735548645535,-968.36,0.00014399,2]
[347176741,1735548645544,-2131.24,0.00014399,2]
[347176742,1735548645554,-1528.33,0.00014399,2]